fUST/lending_fUST_20251205
["ID","MTS","AMOUNT","RATE_DAILY","PERIOD"]
[396283225,1764919837967,-500.0,0.00017999,2]
[396283226,1764919837976,-500.0,0.00017999,2]
[396283227,1764919837985,-500.0,0.00017999,2]
[396283228,1764919837994,-424.88476146,0.00017999,2]
[396283229,1764919838004,-335.4265259,0.00017999,2]
[396283230,1764919838013,-805.02712542,0.00017999,2]
[396283233,1764919839898,-118.76006286,0.00017999,2]
[396283235,1764919839909,-19289.49749695,0.00018,2]
[396283236,1764919839919,-151.0,0.00018,2]
[396283237,1764919839929,-151.0,0.00018,2]
[396283238,1764919839939,-605.7051682,0.00018,2]
[396283239,1764919839949,-151.0,0.00018,2]
[396283240,1764919839958,-151.0,0.00018,2]
[396283241,1764919839968,-200.837689,0.00018,2]
[396283242,1764919839978,-301.8864018,0.00018,2]
[396283243,1764919839988,-607.2011536,0.00018,2]
[396283244,1764919839998,-339.0495744,0.00018,2]
[396283245,1764919840009,-384.4328833,0.00018,2]
[396283246,1764919840019,-2312.83697232,0.00018218,2]
[396283247,1764919840028,-387.59615152,0.0001842,2]
[396283248,1764919840038,-420.0,0.0001849,2]
[396283249,1764919840048,-151.0,0.000185,2]
[396283250,1764919840058,-151.0,0.000185,2]
[396283251,1764919840067,-151.0,0.000185,2]
[396283252,1764919840077,-151.0,0.000185,2]
[396283253,1764919840086,-179.95411209,0.00018718,2]
[396283254,1764919840096,-2398.4119403,0.00018766,2]
[396283255,1764919840107,-247.22031363,0.000188,2]
[396283256,1764919840116,-500.0,0.00018859,2]
[396283258,1764919840125,-500.0,0.00018859,2]
[396283259,1764919840135,-500.0,0.00018859,2]
[396283260,1764919840146,-500.0,0.00018859,2]
[396283261,1764919840160,-253.39905116,0.00018859,2]
[396283263,1764919840170,-151.0,0.0001887,2]
[396283265,1764919840180,-151.0,0.0001887,2]
[396283266,1764919840191,-151.0,0.0001887,2]
[396283267,1764919840203,-196.155232,0.0001887,2]
[396283268,1764919840212,-151.0,0.0001887,2]
[396283269,1764919840222,-151.0,0.0001887,2]
[396283270,1764919840233,-231.717987,0.0001887,2]
[396283271,1764919840243,-254.24040384,0.000189,2]
[396283272,1764919840252,-387.59615152,0.00018941,2]
[396283273,1764919840262,-151.0,0.0001897,2]
[396283274,1764919840271,-151.0,0.0001897,2]
[396283275,1764919840282,-59006.50125451,0.00018976,2]
[396283276,1764919840302,-416.35171708,0.00018976,2]
[396283297,1764919845986,-231.0,0.00018786,2]
[396283298,1764919845996,-1431.96892633,0.00018976,2]
[396283299,1764919846005,-801.76958432,0.00019,2]
[396283300,1764919846033,-280.48547471,0.00019,2]
[396283301,1764919846045,-342.55454446,0.00019,2]
[396283443,1764920744947,5000.0,0.000211,99]
[396283444,1764920767325,5655.0,0.000211,99]
[396283445,1764920785894,5000.0,0.000211,99]
[396283457,1764921031900,-260.46922744,0.00013273,2]
[396283458,1764921031909,-259.0,0.00013273,2]
[396283459,1764921031919,-175.52575652,0.00013379,2]
[396283460,1764921031928,-519.913813,0.00013699,2]
[396283461,1764921031938,-500.0,0.00013699,2]
[396283462,1764921031947,-500.0,0.00013699,2]
[396283463,1764921031958,-306.80709491,0.00013699,2]
[396283465,1764921031968,-500.86252673,0.00014247,2]
[396283467,1764921031977,-1000.0,0.00014247,2]
[396283469,1764921031987,-501.09837044,0.00014795,2]
[396283471,1764921031996,-124.57321096,0.00015377,2]
[396283472,1764921032007,-175.42678904,0.00015377,2]
[396283473,1764921032016,-500.0,0.00015378,2]
[396283474,1764921032025,-32.60244677,0.00015378,2]
[396283477,1764921032036,-467.39755323,0.00015378,2]
[396283480,1764921032045,-210.70827241,0.00015378,2]
[396283788,1764921037967,-289.29172759,0.00015378,2]
[396283789,1764921037977,-500.0,0.00015378,2]
[396283790,1764921037987,-280.09883398,0.00015378,2]
[396283791,1764921037999,-219.90116602,0.00015378,2]
[396283792,1764921038009,-500.0,0.00015378,2]
[396283793,1764921038019,-500.0,0.00015378,2]
[396283794,1764921038029,-500.0,0.00015378,2]
[396283796,1764921038039,-183.1744124,0.00015378,2]
[396283797,1764921038048,-500.0,0.00015378,2]
[396283799,1764921038058,-500.0,0.00015378,2]
[396283800,1764921038068,-500.0,0.00015378,2]
[396283801,1764921038078,-500.0,0.00015378,2]
[396283803,1764921038088,-500.0,0.00015378,2]
[396283805,1764921038098,-500.0,0.00015378,2]
[396283806,1764921038108,-500.0,0.00015378,2]
[396283807,1764921038118,-500.0,0.00015378,2]
[396283808,1764921038127,-269.43164016,0.00015378,2]
[396283809,1764921038138,-500.0,0.00015378,2]
[396283810,1764921038147,-277.09221122,0.00015378,2]
[396283811,1764921038193,-222.90778878,0.00015378,2]
[396283812,1764921038204,-500.0,0.00015378,2]
[396283813,1764921038214,-163.51065051,0.00015378,2]
[396283814,1764921038223,-207.1203927,0.00015379,2]
[396283815,1764921038234,-29461.02178201,0.00015379,2]
[396283816,1764921038244,-399.1865873,0.00016098,2]
[396283817,1764921038254,-420.0,0.00016823,2]
[396283818,1764921038263,-238.71502887,0.00017379,2]
[396283819,1764921038273,-254.835919,0.00017995,2]
[396283820,1764921038282,-254.835919,0.00017995,2]
[396283821,1764921038292,-254.835919,0.00017995,2]
[396283822,1764921038302,-254.835919,0.00017995,2]
[396283823,1764921038312,-153.522764,0.00017995,2]
[396283824,1764921038321,-153.522764,0.00017995,2]
[396283825,1764921038692,-153.522764,0.00017995,2]
[396283826,1764921038726,-151.0,0.00017995,2]
[396283827,1764921038736,-151.0,0.00017995,2]
[396283828,1764921038746,-198.20091361,0.00017999,2]
[396283829,1764921038756,-397.03603988,0.00017999,2]
[396283830,1764921038767,-154.598,0.00017999,2]
[396283831,1764921038779,-7955.09136803,0.00018,2]
[396283832,1764921038791,-8581.03043972,0.00018,2]
[396283837,1764921040519,-9242.42809648,0.00018,2]
[396283861,1764921043273,-5402.24748437,0.00018,2]
[396284021,1764922016116,-409.5515508,0.00014358,2]
[396284089,1764922232272,-565.22377177,0.00013792,2]
[396284091,1764922232284,-1014.09681852,0.00013792,2]
[396284093,1764922232293,-2234.31067969,0.00013931,2]
[396284095,1764922232302,-266.0,0.00014072,2]
[396284097,1764922232313,-163.09853296,0.00014143,2]
[396284099,1764922232323,-259.79186763,0.00014827,5]
[396284101,1764922232332,-399.1865873,0.00016102,2]
[396284103,1764922232342,-1038.12830305,0.0001612,5]
[396284105,1764922232352,-192.45626889,0.00016143,2]
[396284107,1764922232361,-300.0,0.00017831,2]
[396284109,1764922232370,-870.79792531,0.00017832,2]
[396284111,1764922232380,-4592.82746818,0.00017832,30]
[396284113,1764922232389,-3000.0,0.0001785,2]
[396284115,1764922232399,-154.599,0.00017898,2]
[396284117,1764922232408,-257.513751,0.000179,2]
[396284119,1764922232417,-136.39279746,0.000179,2]
[396284121,1764922232429,-121.12095354,0.000179,2]
[396284123,1764922232442,-257.513751,0.000179,2]
[396284125,1764922232452,-123.15876536,0.000179,2]
[396284127,1764922232464,-134.35498564,0.000179,2]
[396284129,1764922232474,-151.0,0.000179,2]
[396284131,1764922232483,-151.0,0.000179,2]
[396284133,1764922232495,-4.64501436,0.000179,2]
[396284165,1764922238204,-317.32453933,0.00017894,2]
[396284166,1764922238214,-500.0,0.00017894,2]
[396284167,1764922238224,-81.04759868,0.00017894,2]
[396284170,1764922238285,-418.95240132,0.00017894,2]
[396284171,1764922238295,-500.0,0.00017894,2]
[396284172,1764922238304,-500.0,0.00017894,2]
[396284173,1764922238313,-69.60394346,0.00017894,2]
[396284175,1764922238325,-430.39605654,0.00017894,2]
[396284176,1764922238334,-500.0,0.00017894,2]
[396284177,1764922238343,-250.50709297,0.00017894,2]
[396284203,1764922243562,-249.49290703,0.00017894,2]
[396284205,1764922243571,-500.0,0.00017894,2]
[396284207,1764922243581,-403.50709297,0.00017894,2]
[396284216,1764922246343,-415.0,0.00017457,2]
[396284217,1764922246353,-96.49290703,0.00017894,2]
[396284218,1764922246362,-174.37923406,0.00017894,2]
[396284381,1764923301026,288.22194609,0.0001,2]
[396284382,1764923310628,1000.0,0.0001,2]
[396284394,1764923432536,-493.918122,0.00013699,2]
[396284395,1764923432546,-13.74760945,0.00013699,2]
[396284434,1764923438408,-249.25239055,0.00013699,2]
[396284435,1764923438418,-179.00593972,0.00014538,2]
[396284436,1764923438428,-399.1865873,0.00016108,2]
[396284437,1764923438438,-211.22700887,0.00016538,2]
[396284438,1764923438447,-300.0,0.00016823,2]
[396284439,1764923438457,-197.16347097,0.00016824,2]
[396284440,1764923438467,-509.13541805,0.00016824,2]
[396284442,1764923438503,-279.51846583,0.00016824,2]
[396284443,1764923438513,-1774.47123873,0.00016824,2]
[396284444,1764923438523,-259.8742073,0.00016848,2]
[396284445,1764923438533,-242.2475947,0.00016886,2]
[396284446,1764923438543,-500.0,0.00016985,2]
[396284447,1764923438552,-500.0,0.00016985,2]
[396284448,1764923438562,-500.0,0.00016985,2]
[396284449,1764923438572,-500.0,0.00016985,2]
[396284450,1764923438582,-500.0,0.00016985,2]
[396284451,1764923438591,-500.0,0.00016985,2]
[396284452,1764923438601,-500.0,0.00016985,2]
[396284453,1764923438610,-500.0,0.00016985,2]
[396284454,1764923438620,-575.90826805,0.00016985,2]
[396284455,1764923438629,-474.01162676,0.00016985,2]
[396284456,1764923438639,-500.0,0.00016985,2]
[396284457,1764923438648,-500.0,0.00016985,2]
[396284458,1764923438657,-500.0,0.00016985,2]
[396284459,1764923438667,-500.0,0.00016985,2]
[396284460,1764923438676,-500.0,0.00016985,2]
[396284461,1764923438686,-500.0,0.00016985,2]
[396284462,1764923438696,-500.0,0.00016985,2]
[396284463,1764923438705,-500.0,0.00016985,2]
[396284464,1764923438714,-500.0,0.00016985,2]
[396284465,1764923438723,-500.0,0.00016985,2]
[396284466,1764923438733,-500.0,0.00016985,2]
[396284467,1764923438743,-570.6786565,0.00016985,2]
[396284468,1764923438753,-500.0,0.00016985,2]
[396284469,1764923438763,-500.0,0.00016985,2]
[396284470,1764923438772,-500.0,0.00016985,2]
[396284471,1764923438781,-500.0,0.00016985,2]
[396284472,1764923438791,-500.0,0.00016985,2]
[396284473,1764923438801,-500.0,0.00016985,2]
[396284474,1764923438810,-500.0,0.00016985,2]
[396284475,1764923438820,-500.0,0.00016985,2]
[396284476,1764923438830,-167.63230933,0.00016985,2]
[396284477,1764923438840,-500.0,0.00016985,2]
[396284478,1764923438850,-500.0,0.00016985,2]
[396284479,1764923438860,-500.0,0.00016985,2]
[396284480,1764923438870,-500.0,0.00016985,2]
[396284481,1764923438880,-500.0,0.00016985,2]
[396284482,1764923438890,-500.0,0.00016985,2]
[396284483,1764923438900,-500.0,0.00016985,2]
[396284484,1764923438909,-500.0,0.00016985,2]
[396284485,1764923438919,-500.0,0.00016985,2]
[396284486,1764923438929,-500.0,0.00016985,2]
[396284487,1764923438939,-500.0,0.00016985,2]
[396284488,1764923438948,-500.0,0.00016985,2]
[396284489,1764923438958,-500.0,0.00016985,2]
[396284490,1764923438968,-500.0,0.00016985,2]
[396284491,1764923438978,-500.0,0.00016985,2]
[396284492,1764923438988,-500.0,0.00016985,2]
[396284493,1764923438997,-500.0,0.00016985,2]
[396284494,1764923439008,-500.0,0.00016985,2]
[396284495,1764923439018,-500.0,0.00016985,2]
[396284496,1764923439028,-500.0,0.00016985,2]
[396284497,1764923439038,-500.0,0.00016985,2]
[396284498,1764923439048,-500.0,0.00016985,2]
[396284499,1764923439058,-500.0,0.00016985,2]
[396284500,1764923439067,-500.0,0.00016985,2]
[396284501,1764923439078,-500.0,0.00016985,2]
[396284502,1764923439088,-500.0,0.00016985,2]
[396284503,1764923439098,-500.0,0.00016985,2]
[396284504,1764923439108,-500.0,0.00016985,2]
[396284505,1764923439118,-500.0,0.00016985,2]
[396284506,1764923439129,-500.0,0.00016985,2]
[396284507,1764923439139,-195.15159338,0.00016985,2]
[396284508,1764923439149,-500.0,0.00016985,2]
[396284509,1764923439160,-500.0,0.00016985,2]
[396284510,1764923439171,-500.0,0.00016985,2]
[396284511,1764923439181,-500.0,0.00016985,2]
[396284512,1764923439191,-500.0,0.00016985,2]
[396284513,1764923439201,-500.0,0.00016985,2]
[396284514,1764923439213,-500.0,0.00016985,2]
[396284515,1764923439222,-500.0,0.00016985,2]
[396284516,1764923439232,-500.0,0.00016985,2]
[396284517,1764923439242,-500.0,0.00016985,2]
[396284518,1764923439253,-456.06559858,0.00016985,2]
[396284519,1764923439263,-217.281152,0.00016987,2]
[396284520,1764923439272,-217.281152,0.00016987,2]
[396284521,1764923439282,-217.281152,0.00016987,2]
[396284522,1764923439291,-151.0,0.00016987,2]
[396284523,1764923439301,-151.0,0.00016987,2]
[396284524,1764923439311,-151.0,0.00016987,2]
[396284525,1764923439320,-217.281152,0.00016987,2]
[396284526,1764923439329,-151.0,0.00016987,2]
[396284527,1764923439339,-172.859,0.00016989,2]
[396284528,1764923439349,-151.0,0.00016989,2]
[396284529,1764923439358,-500.0,0.00016989,2]
[396284530,1764923439367,-257.44446069,0.00016989,2]
[396284531,1764923439376,-500.0,0.00016989,2]
[396284532,1764923439386,-243.90290413,0.00016989,2]
[396284533,1764923439395,-500.0,0.00016989,2]
[396284534,1764923439405,-47202.13211378,0.0001699,2]
[396284535,1764923439415,-270.389439,0.0001699,2]
[396284536,1764923439424,-270.389439,0.0001699,2]
[396284537,1764923439434,-270.389439,0.0001699,2]
[396284538,1764923439444,-270.389439,0.0001699,2]
[396284539,1764923439454,-217.281152,0.0001699,2]
[396284540,1764923439463,-217.281152,0.0001699,2]
[396284541,1764923439473,-844.52655853,0.0001699,2]
[396284542,1764923439484,-151.0,0.0001699,2]
[396284543,1764923439493,-151.0,0.0001699,2]
[396284544,1764923439502,-151.0,0.0001699,2]
[396284545,1764923439511,-217.281152,0.0001699,2]
[396284546,1764923439521,-217.281152,0.0001699,2]
[396284547,1764923439530,-193.077486,0.0001699,2]
[396284548,1764923439540,-415.0,0.00017457,2]
[396284549,1764923439550,-242.2475947,0.00017473,2]
[396284550,1764923439559,-301.8864018,0.000175,2]
[396284551,1764923439569,-270.389439,0.000178,2]
[396284552,1764923439578,-270.389439,0.000178,2]
[396284553,1764923439589,-270.389439,0.000178,2]
[396284554,1764923439599,-270.389439,0.000178,2]
[396284555,1764923439608,-217.281152,0.000178,2]
[396284556,1764923439617,-217.281152,0.000178,2]
[396284557,1764923439626,-151.0,0.000178,2]
[396284558,1764923439636,-151.0,0.000178,2]
[396284559,1764923439645,-217.281152,0.000178,2]
[396284560,1764923439654,-217.281152,0.000178,2]
[396284561,1764923439664,-404.3484433,0.00017841,2]
[396284562,1764923439673,-500.0,0.00017894,2]
[396284563,1764923439683,-500.0,0.00017899,2]
[396284564,1764923439694,-500.0,0.00017899,2]
[396284565,1764923439704,-500.0,0.00017899,2]
[396284566,1764923439714,-500.0,0.00017899,2]
[396284567,1764923439724,-500.0,0.00017899,2]
[396284568,1764923439734,-617.25711811,0.00017899,2]
[396284569,1764923439744,-1015.38733463,0.00018,2]
[396284580,1764923440652,-7806.12199958,0.00018,2]
[396284952,1764923444530,-560.0,0.00016985,2]
[396285132,1764923446643,-1083.24896986,0.00016815,2]
[396285133,1764923446652,-0.13,0.00016985,2]
[396285134,1764923446662,-3017.90057834,0.00018,2]
[396294700,1764924632779,-1370.08716274,0.00015911,2]
[396294702,1764924632789,-39.25190818,0.00016194,2]
[396294705,1764924632801,-142.56937257,0.00016194,2]
[396294706,1764924632811,-288.0,0.00016398,2]
[396294708,1764924632820,-396.29557279,0.00017399,2]
[396294772,1764924638483,-103.70442721,0.00017399,2]
[396294773,1764924638493,-300.0,0.00017498,2]
[396294774,1764924638503,-500.0,0.00017499,2]
[396294775,1764924638513,-174.51985072,0.00017499,2]
[396294776,1764924638523,-500.0,0.00017499,2]
[396294777,1764924638532,-500.0,0.00017499,2]
[396294778,1764924638542,-500.0,0.00017499,2]
[396294779,1764924638551,-500.0,0.00017499,2]
[396294780,1764924638560,-178.10582564,0.00017499,2]
[396294781,1764924638570,-185.29247882,0.00017499,2]
[396294782,1764924638580,-395.57,0.00017499,2]
[396294783,1764924638590,-161.78506651,0.00017499,2]
[396294784,1764924638599,-500.0,0.00017499,2]
[396294785,1764924638609,-500.0,0.00017499,2]
[396294786,1764924638619,-500.0,0.00017499,2]
[396294787,1764924638628,-500.0,0.00017499,2]
[396294788,1764924638639,-11.43520742,0.00017499,2]
[396294789,1764924640615,-488.56479258,0.00017499,2]
[396294791,1764924640625,-375.92600078,0.00017499,2]
[396294792,1764924640668,-124.07399922,0.00017499,2]
[396294793,1764924640678,-500.0,0.00017499,2]
[396294794,1764924640688,-227.98796543,0.00017499,2]
[396294795,1764924640721,-272.01203457,0.00017499,2]
[396294796,1764924640731,-500.0,0.00017499,2]
[396294797,1764924640741,-359.62558387,0.00017499,2]
[396294802,1764924643826,-140.37441613,0.00017499,2]
[396294804,1764924643836,-500.0,0.00017499,2]
[396294806,1764924643846,-500.0,0.00017499,2]
[396294808,1764924643856,-500.0,0.00017499,2]
[396294809,1764924643865,-219.51515934,0.00017499,2]
[396294811,1764924643874,-500.0,0.00017499,2]
[396294813,1764924643883,-500.0,0.00017499,2]
[396294815,1764924643894,-500.0,0.00017499,2]
[396294816,1764924643904,-500.0,0.00017499,2]
[396294817,1764924643913,-105.29872278,0.00017499,2]
[396294818,1764924643924,-394.70127722,0.00017499,2]
[396294819,1764924643936,-500.0,0.00017499,2]
[396294820,1764924643947,-500.0,0.00017499,2]
[396294821,1764924643957,-500.0,0.00017499,2]
[396294822,1764924643967,-500.0,0.00017499,2]
[396294823,1764924643977,-500.0,0.00017499,2]
[396294824,1764924643987,-500.0,0.00017499,2]
[396294825,1764924643996,-500.0,0.00017499,2]
[396294826,1764924644006,-294.71553241,0.00017499,2]
[396294827,1764924644016,-500.0,0.00017499,2]
[396294828,1764924644025,-379.84640073,0.00017499,2]
[396294829,1764924644036,-120.15359927,0.00017499,2]
[396294830,1764924644047,-500.0,0.00017499,2]
[396294831,1764924644056,-500.0,0.00017499,2]
[396294832,1764924644117,-500.0,0.00017499,2]
[396294833,1764924644130,-500.0,0.00017499,2]
[396294834,1764924644141,-500.0,0.00017499,2]
[396294835,1764924644151,-500.0,0.00017499,2]
[396294836,1764924644160,-500.0,0.00017499,2]
[396294837,1764924644171,-500.0,0.00017499,2]
[396294838,1764924644180,-500.0,0.00017499,2]
[396294839,1764924644190,-15.27648073,0.00017499,2]
[396294840,1764924644201,-484.72351927,0.00017499,2]
[396294841,1764924644212,-500.0,0.00017499,2]
[396294842,1764924644221,-300.0,0.00017499,2]
[396294843,1764924644231,-151.0,0.000175,2]
[396294844,1764924644240,-151.0,0.000175,2]
[396294845,1764924644249,-151.0,0.000175,2]
[396294846,1764924644259,-151.0,0.000175,2]
[396294847,1764924644269,-228.249219,0.000175,2]
[396294848,1764924644279,-5611.48626173,0.000175,2]
[396294861,1764925833001,-172.85950067,0.000175,2]
[396294862,1764925833011,-11488.51373827,0.000175,2]
[396294863,1764925833021,-181.68569606,0.000177,2]
[396294864,1764925833031,-1621.79222,0.00017779,2]
[396294865,1764925833040,-817.11724,0.00017779,2]
[396294866,1764925833050,-162.233664,0.00017898,2]
[396294867,1764925833060,-162.233664,0.00017898,2]
[396294868,1764925833069,-162.233664,0.00017898,2]
[396294869,1764925833079,-162.233664,0.00017898,2]
[396294870,1764925833089,-162.233664,0.00017898,2]
[396294871,1764925833098,-162.233664,0.00017898,2]
[396294872,1764925833108,-162.233664,0.00017898,2]
[396294873,1764925833118,-162.233664,0.00017898,2]
[396294874,1764925833127,-151.0,0.00017898,2]
[396294875,1764925833137,-151.0,0.00017898,2]
[396294876,1764925833147,-500.0,0.00017898,2]
[396294877,1764925833157,-180.21112248,0.00017899,2]
[396294878,1764925833167,-500.0,0.00017899,2]
[396294879,1764925833176,-220.73203289,0.00017899,2]
[396294880,1764925833186,-500.0,0.00017899,2]
[396294881,1764925833196,-151.0,0.00017899,2]
[396294882,1764925833205,-151.0,0.00017899,2]
[396294883,1764925833215,-151.0,0.00017899,2]
[396294884,1764925833224,-151.0,0.00017899,2]
[396294885,1764925833234,-408274.2106515,0.000179,2]
[396295015,1764926365387,-150.0,0.0002,30]
[396295024,1764926449298,-0.13198486,0.0002,30]
[396295028,1764926516762,-250.0,0.00018356,7]
[396295099,1764926818081,-409.5515508,0.00013009,2]
[396295149,1764926917772,8711.78805391,0.0001,2]
[396295150,1764926917793,6310.37518467,0.0001,2]
[396295240,1764927031698,-1819.86175815,0.0001275,2]
[396295242,1764927031709,-557.26,0.0001275,2]
[396295247,1764927031754,-1092.55480042,0.0001275,2]
[396295249,1764927031764,-255.0,0.0001275,2]
[396295251,1764927031774,-196.96485513,0.00012815,2]
[396295253,1764927031783,-300.0,0.00012878,2]
[396295255,1764927031792,-1200.0,0.00012878,2]
[396295257,1764927031802,-3453.59391676,0.00012879,2]
[396295259,1764927031811,-28.81654225,0.00013273,2]
[396295261,1764927031823,-221.58584092,0.00013273,2]
[396295263,1764927031833,-300.0,0.00013697,2]
[396295264,1764927031842,-203.74619253,0.00013697,2]
[396295267,1764927031853,-96.25380747,0.00013697,2]
[396295268,1764927031863,-369.34884604,0.00013699,2]
[396295494,1764927037726,-215.07694596,0.00013699,2]
[396295496,1764927037736,-84.92305404,0.00013699,2]
[396295498,1764927037748,-463.7399474,0.00013699,2]
[396295504,1764927037788,-251.39362132,0.00013699,2]
[396295506,1764927037800,-341.0,0.00014125,2]
[396295508,1764927037811,-368.0,0.00014166,2]
[396295510,1764927037825,-232.41852906,0.00014815,2]
[396295512,1764927037836,-420.0,0.0001501,2]
[396295514,1764927037848,-1525.11324553,0.00015111,2]
[396295517,1764927037859,-185.0,0.0001645,2]
[396295519,1764927037870,-628.49977479,0.00016524,2]
[396295521,1764927037883,-488.57536421,0.00016524,2]
[396295523,1764927037896,-1099.4319014,0.00016524,2]
[396296004,1764927043039,-33.66282789,0.00016524,2]
[396296006,1764927043049,-267.87220298,0.00016815,2]
[396296008,1764927043059,-301.9260101,0.0001726,2]
[396296010,1764927043069,-301.9260101,0.0001726,2]
[396296013,1764927043079,-153.0,0.00017352,2]
[396296014,1764927043088,-10410.57050086,0.0001739,2]
[396296017,1764927043101,-596.16442264,0.0001739,2]
[396296024,1764927043163,-8012.06256,0.0001739,2]
[396296027,1764927043174,-94902.87415918,0.0001739,2]
[396296290,1764927045869,-2281.28905335,0.0001739,2]
[396296300,1764927045974,-1215.86785834,0.0001739,2]
[396297549,1764927882206,173.86533648,0.000211,99]
[396297550,1764927882707,173.86533648,0.000211,99]
[396297551,1764927883192,173.86533648,0.000211,99]
[396297558,1764928231900,-1277.62651263,0.00013027,2]
[396297559,1764928231910,-257.0,0.00013027,2]
[396297560,1764928231920,-189.55974339,0.0001316,2]
[396297561,1764928231929,-221.58584092,0.00013273,2]
[396297562,1764928231939,-223.6804972,0.0001516,2]
[396297563,1764928231949,-1000.0,0.00015762,2]
[396297564,1764928231958,-256.725949,0.00016308,2]
[396297565,1764928231968,-160.0,0.00016394,2]
[396297566,1764928231977,-305.0,0.00017,2]
[396297568,1764928231987,-257.80125101,0.0001716,2]
[396297570,1764928231996,-301.9260101,0.0001726,2]
[396297572,1764928232005,-301.9260101,0.0001726,2]
[396297574,1764928232015,-301.9260101,0.0001726,2]
[396297576,1764928232024,-153.0,0.0001726,2]
[396297578,1764928232033,-153.0,0.00017278,2]
[396297580,1764928232042,-2119.15486914,0.0001728,2]
[396297836,1764928240162,-1148.06272865,0.0001718,2]
[396297838,1764928240172,-158.97498407,0.00017181,2]
[396297839,1764928240182,-7880.84513086,0.0001728,2]
[396297842,1764928240192,-771.4151226,0.0001728,2]
[396297844,1764928240202,-362.53295359,0.0001728,2]
[396298306,1764928245343,-137.46704641,0.0001728,2]
[396298308,1764928245353,-184.31265811,0.0001728,2]
[396298310,1764928245362,-500.0,0.0001728,2]
[396298312,1764928245372,-575.67182731,0.0001728,2]
[396298314,1764928245381,-500.0,0.0001728,2]
[396298316,1764928245390,-985.06839667,0.0001728,2]
[396298318,1764928245400,-985.06839667,0.0001728,2]
[396298320,1764928245410,-985.06839667,0.0001728,2]
[396298322,1764928245419,-985.06839667,0.0001728,2]
[396298325,1764928245430,-985.06839667,0.0001728,2]
[396298326,1764928245440,-985.06839667,0.0001728,2]
[396298328,1764928245449,-985.06839667,0.0001728,2]
[396298331,1764928245459,-985.06839667,0.0001728,2]
[396298332,1764928245471,-985.06839667,0.0001728,2]
[396298333,1764928245480,-985.06839667,0.0001728,2]
[396298335,1764928245489,-985.06839667,0.0001728,2]
[396298337,1764928245498,-985.06839667,0.0001728,2]
[396298339,1764928245508,-985.06839667,0.0001728,2]
[396298341,1764928245517,-985.06839667,0.0001728,2]
[396298343,1764928245526,-985.06839667,0.0001728,2]
[396298346,1764928245537,-985.06839667,0.0001728,2]
[396298348,1764928245547,-985.06839667,0.0001728,2]
[396298350,1764928245557,-985.06839667,0.0001728,2]
[396298352,1764928245567,-985.06839667,0.0001728,2]
[396298354,1764928245576,-985.06839667,0.0001728,2]
[396298356,1764928245586,-985.06839667,0.0001728,2]
[396298358,1764928245596,-985.06839667,0.0001728,2]
[396298360,1764928245605,-985.06839667,0.0001728,2]
[396298362,1764928245614,-985.06839667,0.0001728,2]
[396298364,1764928245623,-985.06839667,0.0001728,2]
[396298366,1764928245632,-985.06839667,0.0001728,2]
[396298368,1764928245641,-985.06839667,0.0001728,2]
[396298370,1764928245651,-985.06839667,0.0001728,2]
[396298372,1764928245660,-985.06839667,0.0001728,2]
[396298374,1764928245670,-985.06839667,0.0001728,2]
[396298376,1764928245680,-985.06839667,0.0001728,2]
[396298378,1764928245689,-985.06839667,0.0001728,2]
[396298380,1764928245703,-985.06839667,0.0001728,2]
[396298382,1764928245713,-955.55035668,0.0001728,2]